bitfinex/quotes_ETHUSD_20250406
["timestamp","ask_amount","ask_price","bid_price","bid_amount"]
[1743945612716,0.7903,1773.5,1773.2,3.94754]
[1743945614506,0.7903,1773.5,1773.1,8.77743]
[1743945614706,0.7903,1773.5,1773.2,3.94764]
[1743945614907,0.7903,1773.5,1773.3,3.94742]
[1743945615121,3.7719,1773.9,1773.4,3.94722]
[1743945615343,4.409018,1773.9,1773.4,3.94722]
[1743945615842,0.7719,1773.8,1773.1,0.05]
[1743945617337,0.7719,1773.8,1773.1,3.99786]
[1743945617511,0.7719,1773.8,1773.2,3.94765]
[1743945617715,0.7719,1773.7,1773.1,3.99779]
[1743945618129,0.7719,1773.7,1773.1,3.99772]
[1743945618447,0.7719,1773.7,1773.2,3.94757]
[1743945620542,0.7719,1773.7,1773.3,3.94733]
[1743945621155,0.7719,1773.7,1773.1,7.94559]
[1743945621449,0.7719,1773.7,1773.2,3.94758]
[1743945621646,0.7719,1773.7,1773.2,7.89509]
[1743945621951,0.7719,1773.7,1773.2,3.94751]
[1743945623247,0.7719,1773.7,1773.3,3.94733]
[1743945623451,0.7719,1773.7,1773.2,3.94751]
[1743945624239,0.7719,1773.7,1773.2,7.89505]
[1743945624627,0.7719,1773.7,1773.2,3.94751]
[1743945625421,0.7719,1773.7,1773.2,7.89503]
[1743945625720,0.7719,1773.7,1773.1,3.99784]
[1743945625940,0.7719,1773.7,1773.1,0.05]
[1743945626261,6.02,1773.7,1773.1,0.05]
[1743945626413,1.3768,1773.6,1773.1,0.05]
[1743945626616,0.7748,1773.5,1773.1,0.05]
[1743945627859,0.5,1773.4,1773.1,0.05]
[1743945628021,0.7748,1773.3,1773.1,0.05]
[1743945631446,0.25815757,1773.2,1773.1,0.05]
[1743945631641,1.66927333,1773.2,1773.1,0.05]
[1743945632257,5.21927333,1773.2,1773.1,0.05]
[1743945633883,0.55,1773.1,1772.1,0.05]
[1743945634162,3.0,1772.9,1772.4,3.94943]
[1743945634455,3.0,1772.9,1772.2,3.94972]
[1743945634456,0.25238701,1772.8,1772.3,3.94963]
[1743945634667,0.25238701,1772.8,1772.3,3.94966]
[1743945634866,0.7688,1772.7,1772.3,3.94966]
[1743945635067,0.25116832,1772.6,1772.3,3.94966]
[1743945635368,0.7688,1772.7,1772.3,3.94966]
[1743945635663,0.7688,1772.7,1772.3,7.89923]
[1743945635874,0.25116832,1772.6,1772.3,3.94957]
[1743945636032,0.7688,1772.7,1772.3,3.94952]
[1743945636375,0.7688,1772.5,1772.1,0.05]
[1743945636543,0.7688,1772.5,1772.1,3.99996]
[1743945636749,0.7688,1772.5,1772.2,3.94984]
[1743945636956,0.7688,1772.5,1772.1,3.99996]
[1743945637277,0.7688,1772.3,1772.1,0.05]
[1743945637439,0.7688,1772.6,1772.1,0.05]
[1743945637767,0.25045743,1772.5,1772.1,0.05]
[1743945638129,0.7688,1772.4,1772.1,0.05]
[1743945638772,0.7688,1772.4,1772.1,4.0001]
[1743945639338,0.7688,1772.4,1772.2,3.94976]
[1743945639531,0.7688,1772.4,1772.1,4.00006]
[1743945639723,0.24923832,1772.3,1772.1,4.00006]
[1743945639926,0.7688,1772.4,1772.1,0.05]
[1743945640169,0.7688,1772.4,1772.1,4.0001]
[1743945640831,0.7688,1772.4,1772.1,0.05]
[1743945641269,0.24923832,1772.3,1772.1,0.05]
[1743945641499,0.7688,1772.4,1772.1,4.00002]
[1743945641802,0.7688,1772.4,1772.2,3.94985]
[1743945642204,0.24923832,1772.3,1772.1,4.00002]
[1743945642492,0.7688,1772.4,1772.2,3.94989]
[1743945642650,0.24923832,1772.3,1772.1,4.00002]
[1743945642853,0.7688,1772.4,1772.1,4.00002]
[1743945643093,0.7688,1772.6,1772.2,3.94988]
[1743945643261,0.25045743,1772.5,1772.3,3.94966]
[1743945643664,0.25045743,1772.5,1772.2,3.94988]
[1743945644207,0.25045743,1772.5,1772.3,3.94966]
[1743945644510,0.25045743,1772.5,1772.2,3.94978]
[1743945644807,0.25045743,1772.5,1772.2,7.89954]
[1743945645006,0.25045743,1772.5,1772.2,3.94976]
[1743945645811,0.25045743,1772.5,1772.3,3.94949]
[1743945645963,0.25045743,1772.5,1772.4,3.94944]
[1743945646302,0.7688,1772.9,1772.6,3.94898]
[1743945646508,0.22965667,1772.8,1772.6,3.94898]
[1743945646707,0.7688,1772.9,1772.6,7.89782]
[1743945646866,0.22991824,1772.8,1772.6,7.89782]
[1743945647069,0.7688,1773.1,1772.6,8.66852]
[1743945647265,0.23116597,1773.0,1772.6,8.66852]
[1743945647492,0.23116597,1773.0,1772.6,4.71954]
[1743945648162,0.23116597,1773.0,1772.6,8.66845]
[1743945648497,0.7688,1773.1,1772.6,4.71954]
[1743945648697,0.23117436,1773.0,1772.7,3.94875]
[1743945648998,1.39108,1773.1,1772.7,3.94875]
[1743945649195,1.39108,1773.1,1772.6,0.7707]
[1743945649375,0.23130513,1773.0,1772.5,7.8983]
[1743945649577,0.23130513,1773.0,1772.5,3.94908]
[1743945649773,0.7657,1773.0,1772.4,3.94943]
[1743945650092,0.7657,1773.0,1772.4,7.89872]
[1743945650259,0.7657,1773.0,1772.5,3.94922]
[1743945650462,0.7657,1773.0,1772.6,3.9489]
[1743945650758,0.7657,1773.0,1772.5,3.94913]
[1743945651794,0.7657,1773.2,1772.6,0.7983]
[1743945651994,0.7657,1773.2,1772.9,3.94814]
[1743945652293,0.21366552,1773.1,1773.0,3.94811]
[1743945652471,0.7657,1773.3,1773.1,3.94786]
[1743945653196,0.7657,1773.5,1773.2,3.94756]
[1743945653502,0.7779,1773.9,1773.2,4.74016]
[1743945653999,0.7779,1773.9,1773.2,8.68774]
[1743945654166,0.7779,1773.9,1773.2,4.74016]
[1743945654362,0.7779,1773.9,1773.1,3.9478]
[1743945654580,0.7779,1773.9,1773.2,3.94764]
[1743945654778,0.7779,1773.9,1773.3,3.94733]
[1743945655607,0.7779,1773.9,1773.4,3.94719]
[1743945656332,0.7779,1773.9,1773.4,7.89426]
[1743945656460,0.7779,1773.9,1773.4,3.94707]
[1743945656680,0.7779,1773.9,1773.3,4.74004]
[1743945656865,0.7779,1773.6,1772.5,4.74173]
[1743945657102,0.7779,1773.3,1772.5,8.69079]
[1743945657911,0.7779,1773.3,1772.5,4.74166]
[1743945658125,5.0,1774.3,1772.9,0.7926]
[1743945658283,0.7779,1774.5,1773.6,0.7926]
[1743945658468,0.20591223,1774.4,1773.6,0.7926]
[1743945658668,0.7779,1774.3,1773.9,3.94603]
[1743945658868,0.20588682,1774.2,1773.8,7.89248]
[1743945659095,0.20588682,1774.2,1773.9,3.94596]
[1743945659481,0.20588682,1774.2,1774.1,3.94566]
[1743945659685,0.55,1774.7,1774.3,3.94508]
[1743945659885,0.19217161,1774.6,1774.4,3.94494]
[1743945660774,0.19217161,1774.6,1774.3,8.68278]
[1743945660972,0.19217161,1774.6,1774.2,3.94532]
[1743945662118,0.19217161,1774.6,1774.2,3.94525]
[1743945663197,0.19217161,1774.6,1774.1,4.73822]
[1743945663418,0.19217161,1774.6,1774.1,0.7926]
[1743945663622,0.19217161,1774.6,1774.1,4.73824]
[1743945664219,0.19217161,1774.6,1774.2,3.94543]
[1743945664374,0.19217161,1774.6,1774.2,3.94528]
[1743945665316,0.19217161,1774.6,1774.1,4.73821]
[1743945665619,0.7755,1774.5,1773.9,13.5832]
[1743945665778,0.7755,1774.5,1773.9,9.6371]
[1743945665979,0.19108487,1774.4,1773.9,9.6371]
[1743945666207,0.19108487,1774.4,1773.9,5.691]
[1743945666396,0.7755,1774.3,1773.9,5.691]
[1743945666580,0.7755,1774.3,1773.7,3.94652]
[1743945666782,0.7755,1774.3,1773.5,3.94697]
[1743945667012,0.7755,1774.1,1773.4,3.9471]
[1743945667309,0.7755,1774.0,1773.4,3.9471]
[1743945667609,0.18803975,1773.9,1773.4,3.9471]
[1743945667977,0.5255,1774.0,1773.4,3.9471]
[1743945668177,1.14515,1774.0,1773.4,3.9471]
[1743945668373,0.61965,1774.0,1773.3,3.94743]
[1743945668678,0.61965,1774.0,1773.2,3.9475]
[1743945668878,0.61965,1774.0,1773.3,3.94743]
[1743945669678,0.61965,1774.0,1773.3,4.38071436]
[1743945669881,3.47598461,1773.6,1773.4,3.94711]
[1743945670192,3.47598461,1773.6,1773.3,3.94744]
[1743945670815,3.47598461,1773.6,1773.2,6.94765]
[1743945671311,4.27008461,1773.6,1773.3,3.94742]
[1743945671511,3.47598461,1773.6,1773.4,3.94709]
[1743945671717,3.47598461,1773.6,1773.3,3.94743]
[1743945672094,3.47598461,1773.6,1773.2,7.77215]
[1743945672302,3.47598461,1773.6,1773.2,7.77203]
[1743945672616,3.47598461,1773.4,1773.1,3.9478]
[1743945672915,4.27008461,1773.4,1773.1,10.89551]
[1743945673122,4.27008461,1773.4,1773.2,3.94765]
[1743945673321,0.18195436,1773.3,1773.2,3.94765]
[1743945673625,4.27008461,1773.4,1773.2,3.94765]
[1743945673917,0.18195436,1773.3,1773.2,3.94765]
[1743945674093,4.27008461,1773.4,1773.2,3.94765]
[1743945674415,0.18194949,1773.3,1772.9,3.94815]
[1743945674721,4.69709307,1773.4,1772.9,3.94815]
[1743945675020,0.18194949,1773.3,1772.9,3.94815]
[1743945676011,3.6579341,1773.3,1772.9,3.94815]
[1743945676217,3.6579341,1773.3,1772.8,4.75009]
[1743945676423,0.7535,1773.2,1772.6,4.75068]
[1743945676588,0.7535,1773.2,1772.7,3.94877]
[1743945677019,0.18067887,1773.1,1772.6,3.94887]
[1743945678097,0.18067887,1773.1,1772.5,3.94921]
[1743945678320,0.7535,1773.2,1772.4,4.75113]
[1743945678501,0.7535,1773.1,1772.4,4.75113]
[1743945678926,0.7535,1772.9,1772.3,3.94966]
[1743945679331,0.7535,1772.9,1772.2,4.75159]
[1743945679656,0.7535,1772.7,1772.2,3.94989]
[1743945679937,0.17757175,1772.6,1772.1,10.065255]
[1743945680131,0.7535,1772.7,1772.1,4.426255]
[1743945680429,0.7535,1772.6,1772.1,0.05]
[1743945680820,5.8162215,1772.5,1772.1,0.05]
[1743945681025,1.38732215,1772.4,1772.1,0.05]
[1743945681222,0.8057,1772.3,1772.1,0.05]
[1743945681418,0.97904624,1772.3,1772.1,0.05]
[1743945683801,3.47598461,1772.2,1772.1,0.05]
[1743945684200,3.64446146,1772.2,1772.1,0.05]
[1743945684437,3.64446146,1772.2,1772.1,4.00011]
[1743945684933,3.47598461,1772.2,1772.1,4.79211]
[1743945685927,3.47598461,1772.2,1772.1,10.43611]
[1743945686316,3.40357758,1772.2,1772.1,19.59611]
[1743945686518,3.40357758,1772.2,1772.1,20.14611]
[1743945687412,3.40357758,1772.4,1772.3,6.94966]
[1743945687639,3.40357758,1772.4,1772.3,7.79807515]
[1743945687877,3.40357758,1772.4,1772.3,7.74166]
[1743945688547,3.40357758,1772.4,1772.3,7.79807638]
[1743945688849,3.40357758,1772.4,1772.3,7.74166]
[1743945689642,3.40357758,1772.4,1772.3,13.39266]
[1743945690108,3.40357758,1772.4,1772.3,7.74166]
[1743945690312,3.40357758,1772.4,1772.3,4.74166]
[1743945690653,3.40357758,1772.4,1772.3,5.15621945]
[1743945691011,6.4597,1773.1,1772.5,3.94918]
[1743945691245,0.64597,1773.0,1772.4,3.94942]
[1743945691538,0.81497794,1773.0,1772.4,7.8987]
[1743945691754,0.81497794,1773.0,1772.4,3.94928]
[1743945691916,0.7782,1772.9,1772.3,3.94963]
[1743945692116,0.7782,1772.9,1772.4,3.94934]
[1743945692318,0.16740085,1772.8,1772.3,3.94958]
[1743945692527,0.7782,1772.9,1772.2,9.59588]
[1743945692726,0.16740085,1772.8,1772.2,9.59588]
[1743945692929,0.7782,1772.8,1772.1,6.21]
[1743945693142,0.7782,1772.8,1772.1,0.05]
[1743945693345,0.7582,1772.6,1772.1,0.05]
[1743945694058,0.7582,1772.4,1772.1,0.05]
[1743945694349,0.7582,1772.4,1772.1,4.00006]
[1743945694552,0.7582,1772.4,1772.1,4.00002]
[1743945694929,0.1644355,1772.3,1772.2,3.94976]
[1743945695132,1.3233,1772.7,1772.2,3.94976]
[1743945695318,0.1644355,1772.3,1772.2,3.94976]
[1743945695517,1.3233,1772.7,1772.2,3.94976]
[1743945695818,0.16410291,1772.3,1772.2,3.94976]
[1743945696025,1.3233,1772.7,1772.2,7.89952]
[1743945696455,0.16587643,1772.6,1772.2,3.94976]
[1743945696748,1.3233,1772.7,1772.2,3.94976]
[1743945696953,0.16526713,1772.5,1772.2,3.94976]
[1743945697123,1.3233,1772.7,1772.2,3.94976]
[1743945697323,0.16465776,1772.4,1772.2,3.94976]
[1743945697523,3.46882264,1772.5,1772.2,3.94976]
[1743945697725,0.16404832,1772.3,1772.2,3.94976]
[1743945698056,3.46882264,1772.5,1772.2,3.94976]
[1743945698270,0.16404832,1772.3,1772.2,3.94976]
[1743945698421,3.46882264,1772.5,1772.2,3.94976]
[1743945698964,0.16465776,1772.4,1772.2,3.94976]
[1743945699462,0.16465776,1772.4,1772.2,7.89957]
[1743945699621,0.16465776,1772.4,1772.2,3.94976]
[1743945700131,0.16465776,1772.4,1772.1,0.05]
[1743945700329,0.7582,1772.4,1772.1,0.05]
[1743945700734,3.46882264,1772.5,1772.3,3.94958]
[1743945700937,0.16465776,1772.4,1772.3,3.94958]
[1743945701127,3.46882264,1772.5,1772.3,3.94958]
[1743945701849,3.46882264,1772.5,1772.2,0.7665]
[1743945702323,3.46882264,1772.5,1772.2,4.71636]
[1743945703145,0.7796,1772.4,1772.1,4.0]
[1743945704229,0.7796,1772.4,1772.1,0.05]
[1743945704638,0.7796,1772.4,1772.1,4.00008]
[1743945704929,0.7796,1772.4,1772.1,0.05]
[1743945705133,0.16391881,1772.3,1772.1,0.05]
[1743945705442,0.7796,1772.4,1772.1,0.05]
[1743945705631,0.16331096,1772.2,1772.1,0.05]
[1743945705836,0.7796,1772.4,1772.1,0.05]
[1743945706047,0.16331096,1772.2,1772.1,0.05]
[1743945706535,0.7796,1772.2,1772.1,0.05]
[1743945706732,1.15756,1772.2,1772.1,0.05]
[1743945707128,4.24842264,1772.4,1772.1,0.05]
[1743945707351,0.16326953,1772.2,1772.1,0.05]
[1743945707652,4.24842264,1772.4,1772.1,0.05]
[1743945708170,0.16387904,1772.3,1772.1,0.05]
[1743945708335,0.7654,1772.2,1772.1,0.05]
[1743945708537,0.92866456,1772.2,1772.1,0.05]
[1743945709553,4.3974872,1772.2,1772.1,0.05]
[1743945710445,3.6320872,1772.2,1772.1,0.05]
[1743945710640,3.46882264,1772.2,1772.1,0.05]
[1743945710853,3.63209383,1772.2,1772.1,4.00011]
[1743945711055,3.46882264,1772.2,1772.1,4.75081]
[1743945711644,3.46882264,1772.2,1772.1,5.18130926]
[1743945711979,3.46882264,1772.2,1772.1,4.75081]
[1743945713277,0.7654,1772.6,1772.1,8.70092]
[1743945713438,0.7654,1772.6,1772.2,3.94984]
[1743945713940,0.16519049,1772.5,1772.2,3.94984]
[1743945715566,0.16519049,1772.5,1772.1,4.75081]
[1743945715748,0.7654,1772.6,1772.1,4.75081]
[1743945716155,0.7654,1772.6,1772.1,4.00011]
[1743945716357,1.40354,1772.6,1772.1,4.00011]
[1743945716768,1.40354,1772.6,1772.1,0.05]
[1743945717175,0.7763,1772.5,1772.1,0.05]
[1743945717376,0.94074052,1772.5,1772.1,0.05]
[1743945718373,3.0,1772.4,1772.1,0.05]
[1743945718592,0.7763,1772.2,1772.1,0.05]
[1743945718974,0.93817431,1772.2,1772.1,0.05]
[1743945719178,3.93817431,1772.2,1772.1,0.05]
[1743945719388,4.48817431,1772.2,1772.1,0.05]
[1743945720268,0.93817431,1772.2,1772.1,0.05]
[1743945722868,0.16187431,1772.2,1772.1,0.05]
[1743945723103,0.7763,1772.7,1772.1,4.00011]
[1743945723282,0.7763,1772.7,1772.1,7.95005]
[1743945723607,0.7763,1772.7,1772.3,0.8249]
[1743945723778,0.80202852,1772.6,1772.1,0.05]
[1743945723988,0.7808,1772.5,1772.1,0.05]
[1743945724167,4.58831576,1772.5,1772.1,0.05]
[1743945724367,0.7808,1772.4,1772.1,0.05]
[1743945724567,0.93374558,1772.4,1772.1,0.05]
[1743945733432,3.93374558,1772.4,1772.1,0.05]
[1743945733597,3.0,1772.2,1772.1,0.05]
[1743945733800,0.8646,1772.2,1772.1,0.05]
[1743945734001,1.01570525,1772.2,1772.1,0.05]
[1743945736095,1.77990525,1772.2,1772.1,0.05]
[1743945736620,4.77990525,1772.2,1772.1,0.05]
[1743945736820,5.27990525,1772.2,1772.1,0.05]
[1743945737836,0.09999786,1771.8,1771.1,0.05]
[1743945738122,1.07799053,1772.1,1771.1,0.05]
[1743945738123,3.7521,1771.6,1771.1,0.05]
[1743945738341,3.0,1771.4,1771.1,0.05]
[1743945738639,6.25745859,1771.5,1771.1,0.05]
[1743945738921,6.11121,1771.5,1771.1,0.05]
[1743945739099,0.14563838,1771.4,1771.1,0.05]
[1743945739904,0.14563838,1771.4,1771.2,0.7958]
[1743945740296,6.02,1771.7,1771.2,0.7958]
[1743945740489,0.14685872,1771.6,1771.2,4.74789]
[1743945740723,3.0,1771.8,1771.2,4.74789]
[1743945740917,0.14746879,1771.7,1771.3,3.95189]
[1743945741131,5.729,1771.9,1771.2,0.7958]
[1743945741314,0.97076217,1771.7,1771.1,0.05]
[1743945741650,0.72097879,1771.8,1771.1,0.05]
[1743945741651,0.91105872,1771.6,1771.1,0.05]
[1743945741793,6.67805872,1771.6,1771.1,0.05]
[1743945742828,0.14685872,1771.6,1771.2,0.7958]
[1743945743049,3.7642,1771.8,1771.2,0.7958]
[1743945743218,0.14624859,1771.5,1771.2,0.7958]
[1743945743421,3.7642,1771.8,1771.2,0.7958]
[1743945743625,0.14563838,1771.4,1771.2,0.7958]
[1743945743797,0.37642,1771.7,1771.2,0.7958]
[1743945743998,0.14477594,1771.3,1771.2,0.7958]
[1743945744299,0.80236432,1771.7,1771.2,0.7958]
[1743945744533,0.14660655,1771.6,1771.2,0.7958]
[1743945744731,0.37642,1771.7,1771.2,0.7958]
[1743945745032,0.14660655,1771.6,1771.2,0.7958]
[1743945745239,0.37642,1771.7,1771.2,0.7958]
[1743945745406,0.13160116,1771.5,1771.2,0.7958]
[1743945745603,0.37642,1771.7,1771.2,0.7958]
[1743945746117,0.1322113,1771.6,1771.2,0.7958]
[1743945746413,0.37642,1771.7,1771.2,0.7958]
[1743945746625,0.13160116,1771.5,1771.2,0.7958]
[1743945746800,0.37642,1771.7,1771.2,0.7958]
[1743945747010,0.13099096,1771.4,1771.2,0.7958]
[1743945747213,0.37642,1771.7,1771.2,0.7958]
[1743945747408,0.1305116,1771.3,1771.2,0.7958]
[1743945747738,0.37642,1771.7,1771.2,0.7958]
[1743945747939,0.13260368,1771.6,1771.2,0.7958]
[1743945748243,0.37642,1771.7,1771.2,0.7958]
[1743945748421,0.13199357,1771.5,1771.2,0.7958]
[1743945748754,0.13138339,1771.4,1771.2,4.74781]
[1743945748910,0.37642,1771.7,1771.2,0.7958]
[1743945749109,0.13260368,1771.6,1771.2,0.7958]
[1743945749414,0.37642,1771.7,1771.2,0.7958]
[1743945749618,0.13118434,1771.5,1771.2,0.7958]
[1743945749822,0.37642,1771.7,1771.2,0.7958]
[1743945750313,0.13336335,1771.6,1771.2,4.74792]
[1743945750558,0.37642,1771.7,1771.2,5.62293]
[1743945750841,0.13275332,1771.5,1771.4,4.76046]
[1743945751040,6.5639,1772.0,1771.4,4.76046]
[1743945751214,0.11956085,1771.5,1771.4,5.631687]
[1743945751421,0.8299,1772.0,1771.4,5.631687]
[1743945751713,0.8299,1772.0,1771.4,8.71203]
[1743945751935,0.12203462,1771.9,1771.6,0.8088]
[1743945752121,6.99493183,1772.2,1771.6,4.76001]
[1743945752326,0.82276033,1772.1,1771.6,4.76001]
[1743945752921,0.82276033,1772.1,1771.6,0.8088]
[1743945755386,0.7705,1772.0,1771.4,0.7609]
[1743945755558,0.89329953,1772.0,1771.4,0.7609]
[1743945755885,0.89329953,1772.0,1771.2,0.7609]
[1743945756642,0.55,1771.7,1771.1,0.05]
[1743945756867,0.7705,1771.5,1771.1,0.05]
[1743945757270,0.11883898,1771.4,1771.1,0.05]
[1743945761462,0.11883898,1771.4,1771.2,0.7609]
[1743945761666,3.0,1771.6,1771.2,0.7609]
[1743945761973,0.55,1772.0,1771.2,0.7609]
[1743945761974,0.7705,1772.0,1771.2,0.7609]
[1743945762174,0.12437566,1771.5,1771.2,4.71286]
[1743945762383,3.0,1771.9,1771.2,0.7609]
[1743945762537,0.12374712,1771.4,1771.2,0.7609]
[1743945762740,3.0,1771.9,1771.2,0.7609]
[1743945762969,0.42619349,1771.8,1771.2,0.7609]
[1743945763174,0.7705,1771.7,1771.2,0.7609]
[1743945763373,0.89611383,1771.7,1771.2,0.7609]
[1743945764545,0.12561383,1771.7,1771.2,4.71299]
[1743945764942,0.73221271,1771.8,1771.3,4.76866]
[1743945765143,0.12561383,1771.7,1771.3,0.8168]
[1743945765674,0.3,1771.8,1771.3,0.8168]
[1743945766069,0.12562131,1771.7,1771.3,0.8168]
[1743945766387,0.3,1771.8,1771.3,4.76867]
[1743945766586,0.1250135,1771.6,1771.3,0.8168]
[1743945766755,0.3,1771.8,1771.3,4.76863]
[1743945767084,0.12440375,1771.5,1771.3,4.76863]
[1743945767396,0.7995,1772.1,1771.4,4.76836]
[1743945767558,5.697,1772.1,1771.6,0.8168]
[1743945768084,3.0,1772.0,1771.6,0.8168]
[1743945769495,5.697,1772.1,1771.6,0.8168]
[1743945769700,0.5697,1772.0,1771.6,0.8168]
[1743945771904,0.5697,1772.0,1771.6,4.76792]
[1743945772110,0.7995,1772.3,1771.7,4.74334]
[1743945772592,0.12911524,1772.2,1771.7,4.74334]
[1743945773909,0.12911524,1772.2,1771.7,0.7925]
[1743945774486,0.12911524,1772.2,1771.7,4.74349]
[1743945774690,0.12911524,1772.2,1771.8,0.8322]
[1743945774994,5.674,1772.4,1771.8,4.78289]
[1743945775194,0.12863875,1772.1,1771.8,0.8322]
[1743945775391,5.674,1772.4,1771.8,0.8322]
[1743945775595,0.12816014,1772.0,1771.8,0.8322]
[1743945775783,5.674,1772.4,1771.8,1.7530279]
[1743945775985,0.12755069,1771.9,1771.8,0.8322]
[1743945776181,5.674,1772.4,1771.8,0.8322]
[1743945776389,0.12755069,1771.9,1771.8,0.8322]
[1743945776562,5.674,1772.4,1771.8,0.8322]
[1743945776761,0.12755069,1771.9,1771.8,0.8322]
[1743945776998,5.674,1772.4,1771.8,1.7530279]
[1743945777197,0.12755069,1771.9,1771.8,1.7530279]
[1743945777397,5.674,1772.4,1771.8,1.7530279]
[1743945777606,0.12582537,1771.9,1771.8,1.7530279]
[1743945777802,5.674,1772.4,1771.8,1.7530279]
[1743945777978,0.12582537,1771.9,1771.8,1.7530279]
[1743945778178,5.674,1772.4,1771.8,1.7530279]
[1743945778382,0.12582537,1771.9,1771.8,0.8322]
[1743945778882,0.7584,1772.3,1771.8,0.8322]
[1743945779303,0.12765351,1772.2,1771.8,0.8322]
[1743945781423,0.12765351,1772.2,1771.8,8.79008942]
[1743945781585,5.674,1772.4,1771.8,9.61265894]
[1743945781781,0.12802493,1772.1,1772.0,4.75101]
[1743945781989,12.4537,1772.7,1772.1,0.8007]
[1743945782294,0.7627,1772.7,1772.1,4.7508]
[1743945782488,5.0,1772.9,1772.2,3.94978]
[1743945782704,5.668,1772.8,1772.2,3.94978]
[1743945782902,0.5668,1772.7,1772.2,3.94978]
[1743945783296,0.5668,1772.7,1772.1,4.7508]
[1743945783503,0.5668,1772.7,1772.1,8.70079]
[1743945783838,0.5668,1772.7,1772.2,3.94989]
[1743945784711,0.5668,1772.7,1772.1,4.75069]
[1743945785299,0.5668,1772.7,1772.1,5.66228909]
[1743945785523,0.5668,1772.7,1772.1,5.66225909]
[1743945785824,0.5668,1772.7,1772.2,3.9498]
[1743945786023,0.5668,1772.7,1772.1,5.66225909]
[1743945786325,0.5668,1772.7,1772.2,3.94988]
[1743945786498,0.5668,1772.7,1772.2,0.96121291]
[1743945786694,0.5668,1772.7,1772.2,4.91101291]
[1743945787022,0.1264029,1772.6,1772.2,4.91101291]
[1743945787201,0.5668,1772.7,1772.3,3.94964]
[1743945787400,0.12579435,1772.5,1772.2,3.9498]
[1743945787617,0.5668,1772.7,1772.2,3.9498]
[1743945787787,0.12526524,1772.4,1772.2,3.9498]
[1743945787987,0.5668,1772.7,1772.2,3.9498]
[1743945788217,0.12478714,1772.3,1772.2,3.9498]
[1743945788433,0.5668,1772.7,1772.2,3.9498]
[1743945788729,0.12465655,1772.3,1772.2,3.9498]
[1743945788886,0.5668,1772.7,1772.2,3.9498]
[1743945789324,0.12648241,1772.6,1772.2,3.9498]
[1743945789736,0.5668,1772.7,1772.2,3.9498]
[1743945789894,0.12600443,1772.5,1772.2,3.9498]
[1743945790098,0.12661298,1772.6,1772.1,4.75081]
[1743945790306,0.12526524,1772.4,1772.1,4.75081]
[1743945790501,0.12587386,1772.5,1772.1,4.75081]
[1743945790699,0.12478714,1772.3,1772.1,0.8007]
[1743945790914,0.7864,1772.5,1772.1,0.8007]
[1743945791413,0.12526524,1772.4,1772.1,0.8007]
[1743945793596,0.12526524,1772.4,1772.1,4.7508]
[1743945793811,4.3711,1772.7,1772.1,0.8007]
[1743945794024,0.56359241,1772.6,1772.1,0.8007]
[1743945794223,0.12648241,1772.6,1772.2,4.77729]
[1743945794429,6.4323,1772.9,1772.2,0.8275]
[1743945794727,0.12769931,1772.8,1772.2,0.8275]
[1743945794928,0.12769931,1772.8,1772.2,4.77738]
[1743945795329,0.12769931,1772.8,1772.3,4.77716]
[1743945795727,0.12769931,1772.8,1772.3,0.8275]
[1743945796236,0.52089924,1772.8,1772.3,0.8275]
[1743945796599,0.8043,1772.7,1772.1,0.8275]
[1743945796804,0.1151952,1772.6,1772.1,0.8275]
[1743945799843,5.7571952,1772.6,1772.1,0.8275]
[1743945800346,0.8043,1772.5,1771.8,0.8275]
[1743945800504,1.38001952,1772.5,1771.8,4.77813]
[1743945800712,0.11398003,1772.4,1771.8,8.72876]
[1743945802241,0.11398003,1772.4,1771.9,3.95055]
[1743945803438,0.11398003,1772.4,1771.8,0.8275]
[1743945803641,0.8152,1772.3,1771.8,0.8275]
[1743945803831,0.11132536,1772.2,1771.8,0.8275]
[1743945804745,0.11132536,1772.2,1771.8,4.77826]
[1743945804941,0.11132536,1772.2,1771.8,0.8275]
[1743945805453,0.8152,1772.1,1771.5,0.8087]
[1743945805744,0.8152,1772.0,1771.3,4.76051]
[1743945806260,0.8152,1771.8,1771.3,0.8087]
[1743945806555,6.5468409,1771.8,1771.1,0.8587]
[1743945806755,0.8152,1771.7,1771.1,0.8587]
[1743945807861,0.8152,1771.7,1771.1,4.811]
[1743945808196,5.626,1771.8,1771.1,0.8587]
[1743945808331,5.626,1771.8,1771.4,4.7602]
[1743945808528,5.626,1771.8,1771.4,8.71171]
[1743945809031,46.651,1772.3,1771.6,3.95111]
[1743945809032,3.0,1772.1,1771.6,3.95111]
[1743945809261,0.7752,1772.1,1771.6,4.741363]
[1743945809460,0.7752,1772.1,1771.6,3.95111]
[1743945809669,0.7752,1772.1,1771.6,3.9511]
[1743945811627,0.7752,1772.1,1771.4,7.76026]
[1743945811853,0.7252,1772.1,1771.5,3.95142]
[1743945812061,1.82743,1772.1,1771.5,5.122588]
[1743945812434,1.82743,1772.1,1771.6,3.95122]
[1743945813058,1.82743,1772.1,1771.5,5.122448]
[1743945813552,4.10223,1772.1,1771.4,4.76037]
[1743945814119,4.10223,1772.1,1771.3,3.95189]
[1743945815068,0.7749,1771.9,1771.3,7.90364]
[1743945815366,0.7749,1771.9,1771.3,3.95175]
[1743945815567,0.7749,1771.9,1771.4,0.395175]
[1743945816148,0.7749,1772.1,1771.7,3.95084]
[1743945816671,41.4059,1772.3,1771.8,4.72715]
[1743945816830,41.4059,1772.3,1771.8,4.72713]
[1743945817031,0.7749,1772.3,1771.9,3.95046]
[1743945817438,0.7749,1772.3,1771.8,5.199843]
[1743945817762,0.7749,1772.3,1771.8,1.249213]